[Event "RUS-chT Men Rapid 2019"]
[Site "Sochi"]
[Date "2019.10.19"]
[Round "8.14"]
[White "Iljin, Artem"]
[Black "Bryakin, Mikhail"]
[Result "1-0"]
[ECO "D02"]
[WhiteElo "2509"]
[BlackElo "2440"]
[Annotator "ChessBase"]
[PlyCount "127"]
[EventDate "2019.10.18"]
[EventType "swiss"]
[EventCountry "RUS"]
[SourceTitle "playchess.com"]
[Source "ChessBase"]
[SourceQuality "1"]
[TimeControl "900+10"]

1. Nf3 {[%emt 0:00:00]} d5 {[%emt 0:00:00]} 2. d4 {[%emt 0:00:00]} Nf6 {[%emt 0:00:00]} 3. c4 {[%emt 0:00:01]} c6 {[%emt 0:00:00]} 4. Qc2 {[%emt 0:00:03]} dxc4 {[%emt 0:00:11]} 5. Qxc4 {[%emt 0:00:04]} Bf5 {[%emt 0:00:02]} 6. g3 {[%emt 0:00:09]} e6 {[%emt 0:00:03]} 7. Bg2 {[%emt 0:00:02]} Be7 {[%emt 0:00:09]} 8. O-O {[%emt 0:00:07]} Nbd7 {[%emt 0:00:54]} 9. e3 {[%emt 0:01:12]} Ne4 {[%emt 0:00:03]} 10. Nc3 {[%emt 0:00:39]} O-O {[%emt 0:00:20]} 11. Qe2 {[%emt 0:02:04]} Qa5 {[%emt 0:00:36]} 12. Bd2 {[%emt 0:00:58]} Nxd2 {[%emt 0:00:43]} 13. Nxd2 {[%emt 0:00:04]} h6 {[%emt 0:00:16]} 14. a3 {[%emt 0:00:32]} Qc7 {[%emt 0:00:32]} 15. Rac1 {[%emt 0:00:57]} Bh7 {[%emt 0:00:22]} 16. Rfd1 {[%emt 0:00:59]} Rac8 {[%emt 0:00:37]} 17. Nc4 {[%emt 0:00:57]} Qb8 {[%emt 0:00:17]} 18. b4 Nb6 {[%emt 0:00:34]} 19. Na5 {[%emt 0:01:17]} Rfd8 {[%emt 0:00:43]} 20. Qb2 {[%emt 0:01:45]} a6 {[%emt 0:01:32]} 21. Ne4 {[%emt 0:01:36]} Nd5 {[%emt 0:00:52]} 22. Nc4 {[%emt 0:00:38]} Qa7 {[%emt 0:01:32]} 23. h4 {[%emt 0:01:31]} Nf6 {[%emt 0:01:24]} 24. Nxf6+ {[%emt 0:00:48]} Bxf6 {[%emt 0:00:02]} 25. a4 {[%emt 0:00:14]} g5 {[%emt 0:02:17]} 26. hxg5 {[%emt 0:00:13]} hxg5 {[%emt 0:00:01]} 27. Qb3 {[%emt 0:00:34]} Rc7 {[%emt 0:01:32]} 28. Ra1 {[%emt 0:01:37]} Qb8 {[%emt 0:00:57]} 29. Rac1 {[%emt 0:00:02]} Qa7 {[%emt 0:00:02]} 30. Bf3 {[%emt 0:00:13]} Bg6 {[%emt 0:00:12]} 31. Kg2 {[%emt 0:00:13]} Kg7 {[%emt 0:00:01]} 32. Rh1 {[%emt 0:00:25]} Rcc8 {[%emt 0:00:16]} 33. Rhd1 {[%emt 0:00:17]} Rc7 {[%emt 0:00:04]} 34. Rd2 {[%emt 0:00:06]} Rh8 {[%emt 0:00:22]} 35. Ne5 {[%emt 0:00:15]} Qb8 {[%emt 0:00:57]} 36. Ng4 {[%emt 0:00:11]} Be7 {[%emt 0:00:17]} 37. Qb2 {[%emt 0:00:04]} f6 {[%emt 0:00:01]} 38. e4 {[%emt 0:00:13]} Qf8 {[%emt 0:00:16]} 39. Rb1 {[%emt 0:00:17]} Rd7 {[%emt 0:00:33]} 40. b5 {[%emt 0:00:09]} cxb5 {[%emt 0:00:48]} 41. axb5 {[%emt 0:00:01]} a5 {[%emt 0:00:01]} 42. Rbd1 {[%emt 0:00:12]} Bb4 {[%emt 0:00:02]} 43. Rd3 {[%emt 0:00:07]} Qg8 {[%emt 0:00:56]} 44. e5 {[%emt 0:00:09]} Bxd3 {[%emt 0:00:32]} 45. Nxf6 {[%emt 0:00:13]} Qd8 {[%emt 0:00:01]} 46. Rxd3 {[%emt 0:00:03]} Rf7 {[%emt 0:00:07]} 47. d5 {[%emt 0:00:16]} Rxf6 {[%emt 0:00:08]} 48. exf6+ {[%emt 0:00:07]} Qxf6 {[%emt 0:00:00]} 49. Qc2 {[%emt 0:00:13]} e5 {[%emt 0:00:19]} 50. Qc7+ {[%emt 0:00:08]} Kh6 {[%emt 0:00:38]} 51. Rd1 {[%emt 0:00:10]} g4 {[%emt 0:00:12]} 52. Be4 {[%emt 0:00:18]} Qe7 {[%emt 0:00:11]} 53. d6 {[%emt 0:00:10]} Qf8 {[%emt 0:00:10]} 54. Rh1+ {[%emt 0:00:13]} Kg5 {[%emt 0:00:01]} 55. Rxh8 {[%emt 0:00:07]} Qxh8 {[%emt 0:00:01]} 56. d7 {[%emt 0:00:01]} Be7 {[%emt 0:00:02]} 57. Qxb7 {[%emt 0:00:10]} a4 {[%emt 0:00:02]} 58. Qa6 {[%emt 0:00:05]} Bf6 {[%emt 0:00:46]} 59. Qe6 {[%emt 0:00:12]} Kh6 {[%emt 0:00:10]} 60. Qxg4 {[%emt 0:00:14]} Bg5 {[%emt 0:00:04]} 61. Qh3+ {[%emt 0:00:10]} Kg7 {[%emt 0:00:01]} 62. Qxh8+ Kxh8 63. b6 {[%emt 0:00:02]} a3 {[%emt 0:00:05]} 64. b7 {[%emt 0:00:02]} 1-0

[Event "RUS-chT Men Rapid 2019"]
[Site "Sochi"]
[Date "2019.10.19"]
[Round "8.15"]
[White "Golubov, Saveliy"]
[Black "Faizrakhmanov, Ramil"]
[Result "0-1"]
[ECO "A46"]
[WhiteElo "2469"]
[BlackElo "2434"]
[Annotator "ChessBase"]
[PlyCount "144"]
[EventDate "2019.10.18"]
[EventType "swiss"]
[EventCountry "RUS"]
[SourceTitle "playchess.com"]
[Source "ChessBase"]
[SourceQuality "1"]
[TimeControl "900+10"]

1. d4 {[%emt 0:00:00]} Nf6 {[%emt 0:00:00]} 2. Nf3 {[%emt 0:00:00]} e6 {[%emt 0:00:00]} 3. Bf4 {[%emt 0:00:00]} c5 {[%emt 0:00:00]} 4. e3 {[%emt 0:00:00]} Nc6 {[%emt 0:00:00]} 5. c3 {[%emt 0:00:05]} d5 {[%emt 0:00:00]} 6. Nbd2 {[%emt 0:00:02]} Bd6 {[%emt 0:00:02]} 7. Bg3 {[%emt 0:00:03]} O-O {[%emt 0:00:04]} 8. Bd3 {[%emt 0:00:08]} b6 {[%emt 0:00:06]} 9. Qe2 {[%emt 0:00:03]} h6 {[%emt 0:00:07]} 10. Ne5 {[%emt 0:04:52]} Bb7 {[%emt 0:00:16]} 11. O-O {[%emt 0:00:57]} Ne7 {[%emt 0:03:12]} 12. Bh4 {[%emt 0:02:56]} Ne4 {[%emt 0:00:43]} 13. f3 {[%emt 0:03:56]} Nxd2 {[%emt 0:00:18]} 14. Qxd2 {[%emt 0:00:02]} Qc7 {[%emt 0:01:50]} 15. f4 {[%emt 0:00:01]} Nf5 {[%emt 0:00:46]} 16. Bf2 {[%emt 0:00:01]} Be7 {[%emt 0:00:08]} 17. Qc2 {[%emt 0:00:32]} Nd6 {[%emt 0:00:31]} 18. dxc5 {[%emt 0:00:01]} bxc5 {[%emt 0:00:14]} 19. c4 {[%emt 0:00:01]} dxc4 {[%emt 0:01:03]} 20. Nxc4 {[%emt 0:00:14]} Nxc4 {[%emt 0:00:37]} 21. Qxc4 {[%emt 0:00:10]} Bd5 {[%emt 0:01:02]} 22. Qc2 {[%emt 0:00:04]} c4 {[%emt 0:02:23]} 23. Be4 {[%emt 0:01:27]} Bxe4 {[%emt 0:00:51]} 24. Qxe4 {[%emt 0:00:02]} Rab8 {[%emt 0:00:03]} 25. Rac1 {[%emt 0:00:36]} Rxb2 {[%emt 0:00:39]} 26. Rxc4 {[%emt 0:00:07]} Qd7 27. Rc2 {[%emt 0:01:07]} Rfb8 {[%emt 0:01:07]} 28. Qc4 {[%emt 0:00:38]} a5 {[%emt 0:00:42]} 29. e4 {[%emt 0:00:21]} Rxc2 {[%emt 0:01:12]} 30. Qxc2 {[%emt 0:00:01]} Rb4 {[%emt 0:00:22]} 31. g3 {[%emt 0:01:11]} Qb7 {[%emt 0:00:08]} 32. Rc1 {[%emt 0:00:01]} Qxe4 {[%emt 0:00:24]} 33. Qxe4 {[%emt 0:00:24]} Rxe4 {[%emt 0:00:01]} 34. Rc8+ {[%emt 0:00:05]} Kh7 {[%emt 0:00:01]} 35. Rc7 {[%emt 0:00:17]} Bf6 {[%emt 0:00:01]} 36. Rxf7 {[%emt 0:00:01]} Ra4 {[%emt 0:00:05]} 37. Ra7 {[%emt 0:00:21]} Rxa2 {[%emt 0:00:02]} 38. Ra6 {[%emt 0:00:02]} e5 {[%emt 0:00:16]} 39. fxe5 {[%emt 0:00:09]} Bxe5 {[%emt 0:00:01]} 40. Bc5 {[%emt 0:00:18]} a4 {[%emt 0:00:03]} 41. Kh1 {[%emt 0:00:06]} Bb2 {[%emt 0:00:29]} 42. Ra7 {[%emt 0:00:26]} a3 {[%emt 0:00:27]} 43. Ra6 {[%emt 0:00:01]} Ra1+ {[%emt 0:00:27]} 44. Kg2 {[%emt 0:00:01]} a2 {[%emt 0:00:01]} 45. Bf2 {[%emt 0:00:16]} Be5 {[%emt 0:00:31]} 46. g4 {[%emt 0:00:05]} Kg8 {[%emt 0:00:24]} 47. Ra7 {[%emt 0:00:08]} g5 {[%emt 0:00:20]} 48. Ra5 {[%emt 0:00:29]} Kf7 {[%emt 0:00:10]} 49. Ra6 {[%emt 0:00:05]} Ke7 {[%emt 0:00:10]} 50. h3 {[%emt 0:00:01]} Kd7 {[%emt 0:00:02]} 51. Kf3 {[%emt 0:00:09]} Kc7 {[%emt 0:00:47]} 52. Ke4 {[%emt 0:00:13]} Bc3 {[%emt 0:00:09]} 53. Kf3 {[%emt 0:00:19]} Kb7 {[%emt 0:00:11]} 54. Rb6+ {[%emt 0:00:01]} Kc7 55. Ra6 Kd7 {[%emt 0:00:16]} 56. Kg2 {[%emt 0:00:17]} Bb4 {[%emt 0:00:23]} 57. Kh2 {[%emt 0:00:26]} Bd6+ {[%emt 0:00:10]} 58. Kg2 {[%emt 0:00:01]} Be5 {[%emt 0:00:02]} 59. Kf3 {[%emt 0:00:12]} Bg7 {[%emt 0:00:07]} 60. Kg2 {[%emt 0:00:08]} Be5 {[%emt 0:00:16]} 61. Kf3 {[%emt 0:00:07]} Bd6 {[%emt 0:00:04]} 62. Kg2 {[%emt 0:00:12]} Bc7 {[%emt 0:00:12]} 63. Kf3 {[%emt 0:00:18]} Kc8 {[%emt 0:00:08]} 64. Kg2 {[%emt 0:00:11]} Kb7 {[%emt 0:00:02]} 65. Ra7+ {[%emt 0:00:04]} Kc6 {[%emt 0:00:01]} 66. Ra8 {[%emt 0:00:14]} Kd5 {[%emt 0:00:13]} 67. Ra4 {[%emt 0:00:08]} Be5 {[%emt 0:00:14]} 68. Kf3 {[%emt 0:00:11]} Bc3 {[%emt 0:00:06]} 69. Ke2 {[%emt 0:00:13]} Kc6 {[%emt 0:00:10]} 70. Rc4+ {[%emt 0:00:11]} Kb5 {[%emt 0:00:10]} 71. Rxc3 {[%emt 0:00:02]} Rb1 {[%emt 0:00:00]} 72. Bd4 {[%emt 0:00:11]} Rb2+ {[%emt 0:00:00]} 0-1

[Event "RUS-chT Men Rapid 2019"]
[Site "Sochi"]
[Date "2019.10.19"]
[Round "8.16"]
[White "Samusenko, Maksim"]
[Black "Apryshko, Gleb"]
[Result "1-0"]
[ECO "B06"]
[WhiteElo "2445"]
[BlackElo "2382"]
[Annotator "NA"]
[PlyCount "193"]
[EventDate "2019.10.18"]
[EventType "swiss"]
[EventCountry "RUS"]
[SourceTitle "playchess.com"]
[Source "ChessBase"]
[SourceQuality "1"]
[TimeControl "900+10"]

1. d4 {[%emt 0:00:00]} g6 {[%emt 0:00:00]} 2. e4 {[%emt 0:00:00]} Bg7 {[%emt 0:00:00]} 3. Nc3 {[%emt 0:00:00]} d6 {[%emt 0:00:00]} 4. Bf4 {[%emt 0:00:08]} a6 {[%emt 0:00:03]} 5. Nf3 {[%emt 0:00:35]} Nd7 {[%emt 0:01:30]} 6. Bc4 {[%emt 0:01:01]} e6 {[%emt 0:00:04]} 7. a4 {[%emt 0:00:35]} b6 {[%emt 0:00:02]} 8. O-O {[%emt 0:00:30]} Ne7 {[%emt 0:00:22]} 9. Qd2 {[%emt 0:02:49]} h6 {[%emt 0:00:00]} 10. h4 {[%emt 0:00:28]} Bb7 {[%emt 0:00:19]} 11. Rfe1 {[%emt 0:00:07]} Nf6 {[%emt 0:00:15]} 12. Bb3 {[%emt 0:01:00]} Ng4 {[%emt 0:00:03]} 13. Rad1 {[%emt 0:00:26]} Qd7 {[%emt 0:00:51]} 14. Qe2 {[%emt 0:00:36]} Nf6 {[%emt 0:01:44]} 15. e5 {[%emt 0:01:35]} Nfd5 {[%emt 0:00:16]} 16. Nxd5 {[%emt 0:00:14]} Nxd5 {[%emt 0:00:13]} 17. Bg3 {[%emt 0:00:18]} b5 {[%emt 0:00:06]} 18. axb5 {[%emt 0:00:12]} axb5 {[%emt 0:00:01]} 19. Nd2 {[%emt 0:00:13]} Ne7 {[%emt 0:05:54]} 20. h5 {[%emt 0:01:39]} g5 {[%emt 0:00:03]} 21. f3 {[%emt 0:01:20]} Bd5 {[%emt 0:01:46]} 22. Bxd5 {[%emt 0:00:22]} Nxd5 {[%emt 0:00:02]} 23. Ne4 {[%emt 0:00:33]} Ra6 {[%emt 0:00:03]} 24. Ra1 {[%emt 0:01:06]} Rxa1 {[%emt 0:00:53]} 25. Rxa1 {[%emt 0:00:01]} dxe5 {[%emt 0:00:00]} 26. dxe5 {[%emt 0:01:49]} O-O {[%emt 0:00:08]} 27. Qd2 {[%emt 0:00:09]} Qc6 {[%emt 0:00:52]} 28. Kh2 {[%emt 0:00:01]} Nb6 {[%emt 0:00:10]} 29. Rd1 {[%emt 0:00:27]} Nc4 {[%emt 0:00:16]} 30. Qd4 {[%emt 0:00:02]} Qb6 {[%emt 0:00:41]} 31. Qc3 {[%emt 0:00:25]} Ne3 {[%emt 0:00:37]} 32. Re1 {[%emt 0:00:02]} Nf5 {[%emt 0:00:29]} 33. Bf2 {[%emt 0:00:01]} b4 {[%emt 0:00:01]} 34. Qc5 {[%emt 0:00:41]} Qxc5 {[%emt 0:00:11]} 35. Nxc5 {[%emt 0:00:01]} Rd8 {[%emt 0:00:01]} 36. Re2 {[%emt 0:00:54]} Rd5 {[%emt 0:00:10]} 37. b3 {[%emt 0:00:24]} Bxe5+ {[%emt 0:00:14]} 38. Kh3 {[%emt 0:00:11]} Bd6 {[%emt 0:00:28]} 39. Nd3 {[%emt 0:00:01]} Nd4 {[%emt 0:00:44]} 40. Bxd4 {[%emt 0:00:01]} Rxd4 {[%emt 0:00:00]} 41. g3 {[%emt 0:00:11]} c5 {[%emt 0:00:21]} 42. Nb2 {[%emt 0:00:04]} Bc7 {[%emt 0:00:10]} 43. g4 {[%emt 0:00:05]} Kf8 {[%emt 0:00:23]} 44. Kg2 {[%emt 0:00:00]} Ke7 {[%emt 0:00:02]} 45. Kf2 {[%emt 0:00:22]} Kd6 {[%emt 0:00:13]} 46. Nc4+ {[%emt 0:00:01]} Kc6 {[%emt 0:00:02]} 47. Nb2 {[%emt 0:00:02]} Bf4 {[%emt 0:00:09]} 48. Nd3 {[%emt 0:00:30]} Bc7 {[%emt 0:00:42]} 49. Re1 {[%emt 0:00:03]} Kb5 {[%emt 0:00:34]} 50. Ke2 {[%emt 0:00:04]} c4 {[%emt 0:00:07]} 51. bxc4+ {[%emt 0:00:01]} Kxc4 {[%emt 0:00:18]} 52. Rb1 {[%emt 0:00:15]} Kc3 {[%emt 0:00:36]} 53. Kd1 {[%emt 0:00:03]} Bd6 {[%emt 0:00:10]} 54. Rb3+ {[%emt 0:00:01]} Kc4 {[%emt 0:00:01]} 55. Ke2 {[%emt 0:00:05]} f5 {[%emt 0:00:01]} 56. Nf2 {[%emt 0:00:19]} Bf4 {[%emt 0:00:40]} 57. Nd3 {[%emt 0:00:01]} Bd6 {[%emt 0:00:01]} 58. Nf2 {[%emt 0:00:00]} Rd5 {[%emt 0:00:22]} 59. Nd3 {[%emt 0:00:03]} Ra5 {[%emt 0:00:15]} 60. Nb2+ {[%emt 0:00:12]} Kc5 {[%emt 0:00:05]} 61. Re3 {[%emt 0:00:07]} Ra2 {[%emt 0:00:04]} 62. Nd3+ {[%emt 0:00:09]} Kd5 {[%emt 0:00:18]} 63. Re5+ {[%emt 0:00:15]} Kd4 {[%emt 0:00:12]} 64. Rxe6 {[%emt 0:00:01]} Rxc2+ {[%emt 0:00:02]} 65. Kd1 {[%emt 0:00:01]} Kc3 {[%emt 0:00:16]} 66. Rxd6 {[%emt 0:00:12]} Rd2+ {[%emt 0:00:08]} 67. Kc1 {[%emt 0:00:00]} Rc2+ {[%emt 0:00:13]} 68. Kb1 {[%emt 0:00:11]} b3 {[%emt 0:00:11]} 69. Nc1 {[%emt 0:00:16]} Rb2+ {[%emt 0:00:06]} 70. Ka1 {[%emt 0:00:01]} Rf2 {[%emt 0:00:08]} 71. Rc6+ {[%emt 0:00:08]} Kd4 {[%emt 0:00:17]} 72. Nxb3+ {[%emt 0:00:01]} Ke3 {[%emt 0:00:03]} 73. gxf5 {[%emt 0:00:09]} Kxf3 {[%emt 0:00:07]} 74. Rxh6 {[%emt 0:00:47]} g4 {[%emt 0:00:07]} 75. Rg6 {[%emt 0:00:22]} Rh2 {[%emt 0:00:22]} 76. Nd4+ {[%emt 0:00:11]} Kf4 {[%emt 0:00:05]} 77. f6 {[%emt 0:00:16]} Ke5 {[%emt 0:00:09]} 78. f7 {[%emt 0:00:30]} Rf2 {[%emt 0:00:01]} 79. Rxg4 {[%emt 0:00:11]} Rxf7 {[%emt 0:00:04]} 80. Kb2 {[%emt 0:00:28]} Rh7 {[%emt 0:00:21]} 81. Rh4 {[%emt 0:00:13]} Kf6 {[%emt 0:00:04]} 82. Nf3 {[%emt 0:00:01]} Re7 {[%emt 0:00:08]} 83. Kc2 {[%emt 0:00:16]} Re3 {[%emt 0:00:16]} 84. Rf4+ {[%emt 0:00:16]} Kg7 {[%emt 0:00:01]} 85. Rf5 {[%emt 0:00:09]} Kh6 {[%emt 0:00:13]} 86. Kd2 {[%emt 0:00:08]} Re4 {[%emt 0:00:22]} 87. Kd3 {[%emt 0:00:14]} Re7 {[%emt 0:00:17]} 88. Ne5 {[%emt 0:00:12]} Rg7 {[%emt 0:00:05]} 89. Ke4 {[%emt 0:00:15]} Rg1 {[%emt 0:00:11]} 90. Kf4 {[%emt 0:00:16]} Rf1+ {[%emt 0:00:04]} 91. Nf3 {[%emt 0:00:01]} Ra1 {[%emt 0:00:20]} 92. Kg3 {[%emt 0:00:17]} Ra3 {[%emt 0:00:06]} 93. Kg4 {[%emt 0:00:14]} Ra4+ {[%emt 0:00:02]} 94. Kh3 {[%emt 0:00:02]} Ra3 {[%emt 0:00:01]} 95. Kg3 {[%emt 0:00:09]} Rb3 {[%emt 0:00:04]} 96. Rd5 {[%emt 0:00:14]} Ra3 {[%emt 0:00:04]} 97. Kg4 {[%emt 0:00:04]} 1-0

[Event "RUS-chT Men Rapid 2019"]
[Site "Sochi"]
[Date "2019.10.19"]
[Round "8.17"]
[White "Kokarev, Dmitry"]
[Black "Ponkratov, Pavel"]
[Result "1-0"]
[ECO "C11"]
[WhiteElo "2593"]
[BlackElo "2621"]
[Annotator "ChessBase"]
[PlyCount "65"]
[EventDate "2019.10.18"]
[EventType "swiss"]
[EventCountry "RUS"]
[SourceTitle "playchess.com"]
[Source "ChessBase"]
[SourceQuality "1"]
[TimeControl "900+10"]

1. e4 {[%emt 0:00:00]} e6 {[%emt 0:00:00]} 2. d4 {[%emt 0:00:00]} d5 {[%emt 0:00:00]} 3. Nc3 {[%emt 0:00:00]} Nf6 {[%emt 0:00:00]} 4. e5 {[%emt 0:00:01]} Nfd7 {[%emt 0:00:00]} 5. f4 {[%emt 0:00:02]} c5 {[%emt 0:00:01]} 6. Nf3 {[%emt 0:00:02]} Nc6 {[%emt 0:00:01]} 7. Be3 {[%emt 0:00:03]} Be7 {[%emt 0:00:03]} 8. Qd2 {[%emt 0:00:01]} O-O {[%emt 0:00:06]} 9. Be2 {[%emt 0:00:03]} b6 {[%emt 0:00:13]} 10. O-O {[%emt 0:00:05]} Bb7 {[%emt 0:00:16]} 11. Nd1 {[%emt 0:00:06]} f5 {[%emt 0:00:07]} 12. c4 {[%emt 0:00:40]} cxd4 {[%emt 0:00:09]} 13. Nxd4 {[%emt 0:00:02]} Nxd4 {[%emt 0:00:20]} 14. Bxd4 {[%emt 0:00:02]} Nc5 {[%emt 0:00:05]} 15. Nc3 {[%emt 0:00:43]} dxc4 {[%emt 0:02:17]} 16. Bxc4 {[%emt 0:00:21]} Qe8 {[%emt 0:00:07]} 17. Qe3 {[%emt 0:02:36]} Qc6 {[%emt 0:01:45]} 18. Rf2 {[%emt 0:00:33]} Rad8 {[%emt 0:00:36]} 19. Bb5 {[%emt 0:00:44]} Qc8 {[%emt 0:00:18]} 20. Rc1 {[%emt 0:00:02]} Rxd4 {[%emt 0:01:54]} 21. Qxd4 {[%emt 0:00:03]} Ne4 {[%emt 0:00:03]} 22. Bd7 {[%emt 0:02:09]} Qc7 {[%emt 0:00:01]} 23. Bxe6+ {[%emt 0:00:02]} Kh8 {[%emt 0:00:01]} 24. Qc4 {[%emt 0:01:23]} Bc5 {[%emt 0:01:49]} 25. Nxe4 {[%emt 0:00:03]} fxe4 {[%emt 0:00:01]} 26. Kh1 {[%emt 0:00:50]} e3 {[%emt 0:04:24]} 27. Re2 {[%emt 0:00:27]} g5 {[%emt 0:00:02]} 28. b4 {[%emt 0:01:28]} Rxf4 {[%emt 0:02:14]} 29. Qc3 {[%emt 0:00:02]} Qc6 {[%emt 0:02:04]} 30. bxc5 {[%emt 0:00:13]} Rf2 {[%emt 0:00:03]} 31. Rxf2 {[%emt 0:00:13]} exf2 {[%emt 0:00:01]} 32. Qg3 {[%emt 0:01:26]} Qxc5 {[%emt 0:00:03]} 33. Rf1 {[%emt 0:00:02]} 1-0

[Event "RUS-chT Men Rapid 2019"]
[Site "Sochi"]
[Date "2019.10.19"]
[Round "8.18"]
[White "Lysyj, Igor"]
[Black "Ulybin, Mikhail"]
[Result "1-0"]
[ECO "D06"]
[WhiteElo "2596"]
[BlackElo "2455"]
[Annotator "ChessBase"]
[PlyCount "113"]
[EventDate "2019.10.18"]
[EventType "swiss"]
[EventCountry "RUS"]
[SourceTitle "playchess.com"]
[Source "ChessBase"]
[SourceQuality "1"]
[TimeControl "900+10"]

1. d4 {[%emt 0:00:00]} d5 {[%emt 0:00:08]} 2. c4 {[%emt 0:00:01]} c5 {[%emt 0:00:10]} 3. cxd5 {[%emt 0:00:41]} Qxd5 {[%emt 0:00:09]} 4. e3 {[%emt 0:00:14]} e6 {[%emt 0:00:22]} 5. Nc3 {[%emt 0:00:10]} Qd8 {[%emt 0:00:07]} 6. Nf3 {[%emt 0:00:03]} Nf6 {[%emt 0:00:07]} 7. Bc4 {[%emt 0:00:10]} a6 {[%emt 0:00:56]} 8. O-O {[%emt 0:00:02]} b5 {[%emt 0:00:17]} 9. Be2 {[%emt 0:00:02]} Bb7 {[%emt 0:00:37]} 10. dxc5 {[%emt 0:00:02]} Qxd1 {[%emt 0:00:57]} 11. Rxd1 {[%emt 0:00:02]} Bxc5 {[%emt 0:00:07]} 12. Nd2 {[%emt 0:00:02]} Nbd7 {[%emt 0:02:39]} 13. Nb3 {[%emt 0:00:13]} Bb6 {[%emt 0:01:09]} 14. a4 {[%emt 0:00:29]} b4 {[%emt 0:02:25]} 15. a5 {[%emt 0:00:02]} Ba7 {[%emt 0:00:49]} 16. Na2 {[%emt 0:00:35]} Bd5 {[%emt 0:01:03]} 17. Nd4 {[%emt 0:00:59]} Bxd4 {[%emt 0:03:03]} 18. exd4 {[%emt 0:03:39]} Bxa2 {[%emt 0:00:25]} 19. Rxa2 {[%emt 0:00:01]} Nd5 {[%emt 0:00:14]} 20. Bd2 {[%emt 0:00:28]} Ke7 {[%emt 0:00:07]} 21. Rc1 {[%emt 0:00:17]} Rhc8 {[%emt 0:00:51]} 22. Raa1 {[%emt 0:01:16]} Rxc1+ {[%emt 0:01:07]} 23. Rxc1 {[%emt 0:00:01]} Kd6 {[%emt 0:00:04]} 24. Bf3 {[%emt 0:02:04]} Rb8 {[%emt 0:00:09]} 25. Be2 {[%emt 0:01:41]} Ra8 {[%emt 0:00:41]} 26. Kf1 {[%emt 0:01:04]} h6 {[%emt 0:00:15]} 27. h4 {[%emt 0:00:16]} N7f6 {[%emt 0:00:13]} 28. Bd3 {[%emt 0:00:19]} Kd7 {[%emt 0:00:11]} 29. Ke2 {[%emt 0:00:40]} Ne8 {[%emt 0:00:11]} 30. Bc4 {[%emt 0:01:08]} Nec7 {[%emt 0:00:11]} 31. Kd3 {[%emt 0:00:21]} Rb8 {[%emt 0:00:07]} 32. g4 {[%emt 0:00:08]} Rb7 {[%emt 0:00:16]} 33. f3 {[%emt 0:00:07]} Rb8 {[%emt 0:00:03]} 34. h5 {[%emt 0:00:08]} f6 {[%emt 0:00:08]} 35. f4 {[%emt 0:00:11]} Kd6 {[%emt 0:00:13]} 36. Re1 {[%emt 0:00:04]} Rb7 {[%emt 0:00:12]} 37. f5 {[%emt 0:00:03]} exf5 {[%emt 0:00:14]} 38. gxf5 {[%emt 0:00:02]} Rb8 {[%emt 0:00:10]} 39. Rg1 {[%emt 0:00:13]} Ne8 {[%emt 0:00:10]} 40. Be1 {[%emt 0:01:30]} Kc6 {[%emt 0:00:12]} 41. Bg3 {[%emt 0:00:04]} Ra8 {[%emt 0:00:10]} 42. Re1 {[%emt 0:00:06]} Nec7 {[%emt 0:00:07]} 43. Bxc7 {[%emt 0:00:35]} Nxc7 {[%emt 0:00:03]} 44. Re7 {[%emt 0:00:01]} Rd8 {[%emt 0:00:18]} 45. Rxg7 {[%emt 0:00:12]} Nb5 {[%emt 0:00:09]} 46. Bxb5+ {[%emt 0:00:30]} Kxb5 {[%emt 0:00:04]} 47. Rg6 {[%emt 0:00:02]} Rd5 {[%emt 0:00:19]} 48. Rxf6 {[%emt 0:00:08]} Kxa5 {[%emt 0:00:03]} 49. Kc4 {[%emt 0:00:01]} Rd8 {[%emt 0:00:12]} 50. d5 {[%emt 0:00:12]} Rg8 {[%emt 0:00:06]} 51. Rg6 {[%emt 0:00:13]} Re8 {[%emt 0:00:10]} 52. Re6 {[%emt 0:00:12]} Rg8 {[%emt 0:00:10]} 53. d6 {[%emt 0:00:41]} Rg4+ {[%emt 0:00:13]} 54. Kc5 {[%emt 0:00:13]} Rg1 {[%emt 0:00:10]} 55. d7 {[%emt 0:00:08]} Rc1+ {[%emt 0:00:10]} 56. Kd6 {[%emt 0:00:07]} Rd1+ {[%emt 0:00:06]} 57. Ke7 {[%emt 0:00:02]} 1-0